bitfinex-derivatives/quotes_ETHF0:USTF0_20260123
["timestamp","ask_amount","ask_price","bid_price","bid_amount"]
[1769177278306,0.38480364,2935.5,2934.2,4.59600667]
[1769177278505,0.38480364,2935.4,2934.2,4.59600667]
[1769177278804,0.38480364,2935.3,2934.2,4.59600667]
[1769177279005,0.14487101,2935.6,2934.2,4.59600667]
[1769177279207,0.52449931,2935.5,2934.2,4.59600667]
[1769177279409,0.38474496,2935.4,2934.2,4.59600667]
[1769177279706,0.38474496,2935.3,2934.2,4.59600667]
[1769177279902,0.13975435,2935.5,2934.2,4.59600667]
[1769177280104,0.38469279,2935.4,2934.2,4.59600667]
[1769177280303,0.38469279,2935.3,2934.2,4.59600667]
[1769177280501,0.13975435,2935.5,2934.2,4.59600667]
[1769177280707,0.38466749,2935.4,2934.2,4.59600667]
[1769177281007,0.13975435,2935.2,2934.2,4.59800667]
[1769177281707,0.13975435,2935.2,2934.2,0.00300667]
[1769177282013,0.14705556,2935.0,2934.2,0.00300667]
[1769177284813,0.17057,2935.3,2933.5,3.06682118]
[1769177284814,0.14705556,2934.8,2933.5,2.716]
[1769177285313,0.17057,2935.3,2933.5,2.88667]
[1769177285509,0.53132732,2935.2,2933.6,0.17066]
[1769177285710,0.38427176,2935.1,2933.6,0.32185199]
[1769177288313,0.38427176,2935.1,2933.7,0.14473688]
[1769177288514,0.15006824,2935.0,2933.6,0.17381634]
[1769177289016,0.15006824,2935.0,2933.9,0.90991058]
[1769177290213,0.17057,2935.3,2933.9,0.90991058]
[1769177290415,0.38399884,2935.2,2933.9,0.90991058]
[1769177290609,0.38399884,2935.1,2933.9,0.90991058]
[1769177290808,0.38399884,2935.0,2933.9,0.90991058]
[1769177291115,0.15006824,2935.2,2933.9,0.90991058]
[1769177291315,0.38397128,2935.1,2933.9,0.90991058]
[1769177291511,0.38397128,2935.0,2933.9,0.90991058]
[1769177291707,0.15006824,2935.2,2933.9,0.90991058]
[1769177291908,0.38399236,2935.1,2933.9,0.90991058]
[1769177292108,0.38399236,2935.0,2933.9,0.90991058]
[1769177292308,0.15006824,2935.2,2933.9,0.90991058]
[1769177292512,0.38402315,2935.1,2933.9,0.90991058]
[1769177292714,0.38402315,2935.0,2933.9,0.90991058]
[1769177292913,0.15006824,2935.2,2933.9,0.90991058]
[1769177293115,0.38402286,2935.1,2933.9,0.90991058]
[1769177293412,0.3840679,2935.0,2933.9,0.90991058]
[1769177293617,0.15006824,2935.2,2933.9,0.90991058]
[1769177293808,0.38410228,2935.1,2933.9,0.90991058]
[1769177294010,0.38410228,2935.0,2933.9,0.90991058]
[1769177294215,0.15006824,2935.2,2933.9,0.90991058]
[1769177294518,0.53421728,2935.1,2933.9,0.90991058]
[1769177294816,0.38414904,2935.0,2933.9,0.90991058]
[1769177300024,0.15006824,2934.9,2933.9,0.90991058]
[1769177300222,0.38414904,2934.8,2933.9,0.90991058]
[1769177300522,0.53421728,2934.8,2933.9,0.90991058]
[1769177300722,0.15006824,2934.8,2933.9,0.90991058]
[1769177301118,0.15006824,2934.8,2933.7,4.604]
[1769177301319,0.15006824,2934.8,2933.6,3.9798881]
[1769177301526,0.53453727,2934.7,2933.6,0.91306692]
[1769177301822,0.15314226,2934.7,2933.6,0.91306692]
[1769177303724,0.15314226,2934.7,2933.6,0.00315634]
[1769177304328,0.38444111,2934.6,2933.6,0.00315634]
[1769177304526,0.15314226,2934.7,2933.6,0.00315634]
[1769177304719,0.38443763,2934.6,2933.6,0.00315634]
[1769177304920,0.15314226,2934.7,2933.6,0.00315634]
[1769177305122,0.15006824,2934.4,2933.6,0.00315634]
[1769177305322,0.15006824,2934.2,2933.0,11.09682118]
[1769177305523,0.15006824,2934.2,2933.0,8.03]
[1769177306131,0.15006824,2934.2,2932.9,0.90991058]
[1769177306326,0.15006824,2934.2,2933.0,0.00290302]
[1769177306529,0.15006824,2934.6,2933.5,0.90991058]
[1769177306827,0.38215024,2934.5,2933.5,0.90991058]
[1769177307129,0.38215024,2934.4,2933.5,0.90991058]
[1769177307429,0.15006824,2934.6,2933.5,0.90991058]
[1769177307622,0.38213674,2934.5,2933.5,0.90991058]
[1769177307824,0.00307402,2934.7,2933.8,0.90991058]
[1769177308427,0.38221903,2934.6,2933.8,0.90991058]
[1769177308623,0.00307402,2934.7,2933.8,0.90991058]
[1769177308822,0.38221757,2934.6,2933.8,0.90991058]
[1769177309024,0.00307402,2934.7,2933.8,0.90991058]
[1769177311330,0.38222643,2934.6,2933.8,0.90991058]
[1769177311532,0.00307402,2934.7,2933.8,0.90991058]
[1769177312526,0.00307402,2934.7,2933.5,0.90991058]
[1769177312735,0.00307402,2934.7,2933.8,0.90991058]
[1769177313434,0.00307402,2934.7,2934.1,0.90991058]
[1769177314929,1.05249363,2935.4,2934.1,0.90991058]
[1769177315237,1.30806732,2935.3,2934.1,0.90991058]
[1769177315533,1.30806732,2935.2,2934.1,0.90991058]
[1769177315732,1.30806732,2935.1,2934.1,0.90991058]
[1769177315936,0.38223902,2935.0,2934.1,0.90991058]
[1769177316137,0.38223902,2934.9,2934.1,0.90991058]
[1769177316335,0.0024928,2935.1,2934.1,0.90991058]
[1769177316537,0.37938528,2935.0,2934.1,0.90991058]
[1769177316732,0.00511666,2934.8,2934.1,0.90991058]
[1769177316929,0.00511666,2934.8,2933.6,3.37625887]
[1769177317436,0.00511666,2934.8,2933.7,0.13877769]
[1769177318833,0.00511666,2934.8,2933.7,3.20559887]
[1769177319037,0.0024928,2935.1,2933.9,1.04860744]
[1769177319240,0.0024928,2935.1,2934.0,0.00511666]
[1769177320744,0.0024928,2935.1,2934.0,0.14389435]
[1769177320938,0.0024928,2935.1,2934.0,3.21071553]
[1769177321139,0.0024928,2935.1,2934.1,4.614]
[1769177321538,0.0024928,2935.1,2934.0,8.03211666]
[1769177325543,0.14258305,2936.0,2934.2,0.30939769]
[1769177325748,1.3037261,2935.9,2934.2,0.30939769]
[1769177325949,0.37787015,2935.8,2934.2,3.37621887]
[1769177326448,0.52377582,2935.8,2934.2,3.37621887]
[1769177326639,0.37787015,2935.7,2934.2,0.30939769]
[1769177326846,0.14258305,2935.5,2934.1,3.06682118]
[1769177327052,0.52032416,2935.4,2934.2,4.632]
[1769177327241,0.14258305,2935.4,2934.2,4.632]
[1769177328450,0.14258305,2935.4,2934.0,0.00511666]
[1769177328647,0.14258305,2935.4,2934.1,4.633]
[1769177336350,0.31644567,2935.8,2934.1,4.77177769]
[1769177336652,1.30290865,2935.7,2934.2,0.13877769]
[1769177336852,0.37767962,2935.6,2934.2,0.13877769]
[1769177337055,0.37767962,2935.5,2934.2,0.13877769]
[1769177337243,0.37767962,2935.4,2934.2,0.13877769]
[1769177337448,0.31644567,2935.8,2934.2,0.13877769]
[1769177337751,0.3749928,2935.7,2934.2,0.13877769]
[1769177337953,0.3749928,2935.6,2934.2,0.13877769]
[1769177338254,0.3749928,2935.5,2934.2,0.13877769]
[1769177338455,0.31644567,2935.8,2934.2,0.13877769]
[1769177338642,0.37507485,2935.7,2934.2,0.13877769]
[1769177338845,0.37507485,2935.6,2934.2,0.13877769]
[1769177339042,0.37507485,2935.5,2934.2,0.13877769]
[1769177339246,0.31644567,2935.8,2934.2,0.13877769]
[1769177339457,0.37502194,2935.7,2934.2,0.13877769]
[1769177339660,0.37502194,2935.6,2934.2,0.13877769]
[1769177339950,0.37502194,2935.5,2934.2,0.13877769]
[1769177340149,0.37502194,2935.4,2934.2,0.13877769]
[1769177340350,0.31644567,2935.8,2934.2,0.13877769]
[1769177340547,0.31644567,2935.8,2934.1,4.633]
[1769177340548,0.37513083,2935.7,2934.7,0.90982975]
[1769177340748,0.00332262,2935.8,2934.7,1.04860744]
[1769177341146,0.14258305,2936.6,2934.8,0.13877769]
[1769177341351,1.0683231,2936.5,2934.8,0.13877769]
[1769177341550,0.37506051,2936.4,2934.8,0.13877769]
[1769177342053,0.13936958,2936.3,2935.4,0.00511666]
[1769177342256,0.37506051,2936.2,2935.4,0.00908149]
[1769177342552,0.14316979,2936.3,2935.4,0.00908149]
[1769177342851,0.37495147,2936.2,2935.4,0.00908149]
[1769177343047,0.14316979,2936.3,2935.4,0.00908149]
[1769177343254,0.37492568,2936.2,2935.4,0.00908149]
[1769177343455,0.14316979,2936.3,2935.4,0.00908149]
[1769177343646,0.37482334,2936.2,2935.4,0.00908149]
[1769177343849,0.14316979,2936.3,2935.4,0.00908149]
[1769177344049,0.37478518,2936.2,2935.4,0.00908149]
[1769177344246,0.14316979,2936.3,2935.4,0.00908149]
[1769177344456,0.37471131,2936.2,2935.4,0.00908149]
[1769177344656,0.14316979,2936.3,2935.4,0.00908149]
[1769177344859,0.37471274,2936.2,2935.4,0.00908149]
[1769177345058,0.14316979,2936.3,2935.4,0.00908149]
[1769177347062,0.14156607,2936.1,2935.4,0.00908149]
[1769177355969,0.00380021,2936.3,2935.4,0.00908149]
[1769177361971,0.14156607,2936.9,2935.4,0.32459536]
[1769177363071,0.14503709,2936.9,2935.5,0.90982975]
[1769177363767,0.00347102,2936.9,2935.6,0.14495387]
[1769177363972,0.00347102,2936.9,2935.7,0.14495387]
[1769177364760,0.00347102,2936.9,2935.7,0.31549387]
[1769177365166,0.00347102,2936.9,2935.9,0.90982975]
[1769177365369,0.14156607,2937.8,2935.9,1.22531362]
[1769177365569,0.14156607,2937.6,2935.9,1.22531362]
[1769177365872,0.37434384,2937.5,2936.0,0.14495387]
[1769177366270,0.37680282,2937.5,2936.0,0.14495387]
[1769177366474,0.00245898,2937.5,2936.0,0.14495387]
[1769177367274,0.00245898,2937.5,2936.1,0.14495387]
[1769177367779,0.00245898,2937.5,2936.4,0.14495387]
[1769177367974,0.00245898,2937.5,2936.5,4.651]
[1769177368268,0.14402505,2937.5,2936.2,8.062]
[1769177368669,0.14402505,2937.5,2935.9,6.3]
[1769177368872,0.14402505,2937.5,2936.0,8.065]
[1769177369371,0.14402505,2937.5,2935.9,6.3]
[1769177369670,0.14402505,2937.5,2935.9,14.368]
[1769177369870,0.14402505,2937.5,2935.9,8.068]
[1769177370070,0.14156607,2937.3,2935.9,8.068]
[1769177376466,0.14156607,2937.3,2935.8,0.17053]
[1769177376676,0.14156607,2937.3,2935.9,8.082]
[1769177377376,0.14156607,2937.3,2935.8,0.17053]
[1769177377780,0.14156607,2937.3,2935.8,4.50053]
[1769177377976,0.14156607,2937.3,2935.8,4.64123692]
[1769177378275,0.00245898,2937.5,2936.0,0.31122692]
[1769177378481,0.00245898,2937.5,2936.1,0.14070692]
[1769177379081,0.00245898,2937.5,2936.6,0.90816822]
[1769177380179,0.00245898,2937.5,2936.4,0.14070692]
[1769177380383,0.00245898,2937.5,2936.3,0.90816822]
[1769177385089,0.00245898,2937.5,2936.3,1.04887514]
[1769177385583,0.00245898,2937.5,2936.3,5.72887514]
[1769177386084,0.00245898,2937.5,2936.3,1.04887514]
[1769177386281,0.00245898,2937.5,2936.4,4.68]
[1769177389594,0.37468583,2937.4,2936.3,5.59016822]
[1769177389801,0.00245898,2937.5,2936.3,5.59016822]
[1769177390094,0.3746847,2937.4,2936.3,5.59016822]
[1769177390290,0.00245898,2937.5,2936.3,5.59016822]
[1769177390492,0.37483359,2937.4,2936.3,5.59016822]
[1769177390701,0.00245898,2937.5,2936.3,5.59016822]
[1769177390901,0.37486398,2937.4,2936.3,5.59016822]
[1769177391101,0.00245898,2937.5,2936.3,5.59016822]
[1769177391302,0.37486343,2937.4,2936.3,5.59016822]
[1769177391503,0.00245898,2937.5,2936.3,5.59016822]
[1769177391706,0.37505458,2937.4,2936.3,5.59016822]
[1769177392004,0.00245898,2937.5,2936.3,5.59016822]
[1769177392205,0.37505533,2937.4,2936.3,5.59016822]
[1769177392505,0.37505533,2937.3,2936.3,5.59016822]
[1769177392801,0.00245898,2937.5,2936.3,5.59016822]
[1769177393003,0.37515715,2937.4,2936.3,5.59016822]
[1769177393303,0.37515715,2937.3,2936.3,5.59016822]
[1769177393496,0.00245898,2937.5,2936.3,5.59016822]
[1769177393698,0.37526531,2937.4,2936.3,5.59016822]
[1769177394003,0.00245898,2937.5,2936.3,5.59016822]
[1769177394004,0.37526531,2937.3,2936.3,5.59016822]
[1769177394208,0.00245898,2937.5,2936.3,0.90816822]
[1769177394402,0.37529138,2937.4,2936.4,4.692]
[1769177394705,0.37529138,2937.3,2936.3,4.692]
[1769177394903,0.37529138,2937.2,2936.3,4.692]
[1769177395103,1.06295948,2937.5,2936.3,4.692]
[1769177395402,0.37529119,2937.4,2936.3,4.692]
[1769177395608,0.37529119,2937.3,2936.3,4.692]
[1769177395799,0.37529119,2937.2,2936.3,4.692]
[1769177396001,1.06295948,2937.5,2936.3,4.692]
[1769177396202,1.29815273,2937.4,2936.3,4.692]
[1769177396497,0.37539092,2937.3,2936.3,4.692]
[1769177396697,0.37538781,2937.2,2936.3,4.692]
[1769177397006,0.37538781,2937.1,2936.3,4.692]
[1769177397204,1.06295948,2937.5,2936.3,4.692]
[1769177397408,1.29826015,2937.4,2936.3,4.692]
[1769177397708,0.37540803,2937.3,2936.3,5.60016822]
[1769177397900,0.37540803,2937.2,2936.3,5.60016822]
[1769177398103,0.15479126,2937.5,2936.3,5.60016822]
[1769177398400,1.29832388,2937.4,2936.3,5.60016822]
[1769177398602,0.37542994,2937.3,2936.4,0.14070692]
[1769177398803,0.00245898,2937.5,2936.4,0.14070692]
[1769177399007,0.3754505,2937.4,2936.4,0.14070692]
[1769177399210,0.3754505,2937.3,2936.4,0.14070692]
[1769177399401,0.00245898,2937.5,2936.4,0.14070692]
[1769177399707,0.37545125,2937.4,2936.4,0.14070692]
[1769177399899,0.37395327,2937.3,2936.4,0.14070692]
[1769177400099,0.00245898,2937.5,2936.4,0.14070692]
[1769177400305,0.37391691,2937.4,2936.4,0.14070692]
[1769177400610,0.37391691,2937.3,2936.4,0.14070692]
[1769177400812,0.00245898,2937.5,2936.4,0.14070692]
[1769177400998,0.37394261,2937.4,2936.4,0.14070692]
[1769177401204,0.37394261,2937.3,2936.4,0.14070692]
[1769177401404,0.00245898,2937.5,2936.4,0.14070692]
[1769177401605,0.3739634,2937.4,2936.4,0.14070692]
[1769177401805,0.3739634,2937.3,2936.4,0.14070692]
[1769177402107,0.00245898,2937.5,2936.4,0.14070692]
[1769177402309,0.37399935,2937.4,2936.4,0.14070692]
[1769177402510,0.37399935,2937.3,2936.4,0.14070692]
[1769177402710,0.00245898,2937.5,2936.4,0.14070692]
[1769177402912,0.37397869,2937.4,2936.4,0.14070692]
[1769177403111,0.37397869,2937.3,2936.4,0.14070692]
[1769177403410,0.00245898,2937.5,2936.3,5.60016822]
[1769177403411,0.37398862,2937.2,2936.3,5.60016822]
[1769177403606,0.00245898,2937.5,2936.3,5.60016822]
[1769177403810,0.37398817,2937.4,2936.3,5.60016822]
[1769177404008,0.37398817,2937.3,2936.3,5.60016822]
[1769177404206,0.00245898,2937.5,2936.3,5.74008993]
[1769177404411,0.37401428,2937.4,2936.3,5.74008993]
[1769177404709,0.37401428,2937.3,2936.3,5.74008993]
[1769177404908,0.00245898,2937.5,2936.3,5.74008993]
[1769177405109,0.37253791,2937.4,2936.3,5.74008993]
[1769177405308,0.37253791,2937.3,2936.3,5.74008993]
[1769177405508,0.00245898,2937.5,2936.3,5.74008993]
[1769177405814,0.37260323,2937.4,2936.3,5.74008993]
[1769177406111,0.37260323,2937.3,2936.3,5.74008993]
[1769177406312,0.00245898,2937.5,2936.3,5.74008993]
[1769177406501,0.37264485,2937.4,2936.3,5.74008993]
[1769177406706,0.37264485,2937.3,2936.3,5.74008993]
[1769177406905,0.37263096,2937.2,2936.3,5.74008993]
[1769177407205,0.00245898,2937.5,2936.3,5.74008993]
[1769177407413,0.37271651,2937.4,2936.3,5.74008993]
[1769177407613,0.37271651,2937.3,2936.3,5.74008993]
[1769177407911,0.37271651,2937.2,2936.3,5.74008993]
[1769177408112,0.00245898,2937.5,2936.3,5.74008993]
[1769177408313,0.3726157,2937.4,2936.3,5.74008993]
[1769177408515,0.3726157,2937.3,2936.3,5.74008993]
[1769177408708,0.3726157,2937.2,2936.3,5.74008993]
[1769177408909,0.00245898,2937.5,2936.3,5.74008993]
[1769177409106,0.37258942,2937.4,2936.3,5.74008993]
[1769177409311,0.37258942,2937.3,2936.3,5.74008993]
[1769177409512,0.37258942,2937.2,2936.3,5.74008993]
[1769177409709,0.00245898,2937.5,2936.3,5.74008993]
[1769177409916,0.36974243,2937.4,2936.3,5.74008993]
[1769177410213,0.36974243,2937.3,2936.3,5.74008993]
[1769177410411,0.36974243,2937.2,2936.3,5.74008993]
[1769177410608,0.00245898,2937.5,2936.3,5.74008993]
[1769177410813,0.36974392,2937.4,2936.6,0.90816822]
[1769177411019,0.00245898,2937.5,2936.6,0.90816822]
[1769177411219,0.36977494,2937.4,2936.6,0.90816822]
[1769177411518,0.00245898,2937.5,2936.6,1.04683836]
[1769177411815,0.36978086,2937.4,2936.6,1.04683836]
[1769177412013,0.00245898,2937.5,2936.6,1.04683836]
[1769177412208,0.36978085,2937.4,2936.6,1.04683836]
[1769177412408,0.00245898,2937.5,2936.6,1.04683836]
[1769177412608,0.36977408,2937.4,2936.6,1.04683836]
[1769177412813,0.00245898,2937.5,2936.6,1.04683836]
[1769177413116,0.36977427,2937.4,2936.6,1.04683836]
[1769177413317,0.00245898,2937.5,2936.6,1.04683836]
[1769177413521,0.36976695,2937.4,2936.6,1.04683836]
[1769177413726,0.00245898,2937.5,2936.3,5.60016822]
[1769177414017,0.36977038,2937.4,2936.4,3.409]
[1769177414216,0.00245898,2937.5,2936.4,3.409]
[1769177414411,0.36976513,2937.4,2936.4,3.2497353]
[1769177414717,0.00245898,2937.5,2936.4,3.2497353]
[1769177414912,0.36976008,2937.4,2936.4,3.2497353]
[1769177415117,0.00245898,2937.5,2936.4,3.2497353]
[1769177415317,0.36976241,2937.4,2936.4,3.2497353]
[1769177415618,0.00245898,2937.5,2936.4,3.2497353]
[1769177415818,0.36976778,2937.4,2936.4,3.2497353]
[1769177416118,0.00245898,2937.5,2936.4,3.2497353]
[1769177416317,0.36977308,2937.4,2936.4,3.2497353]
[1769177416512,0.36985766,2937.3,2936.5,4.739]
[1769177416717,0.00245898,2937.5,2936.5,4.739]
[1769177416918,0.3698436,2937.4,2936.5,4.739]
[1769177417118,0.3698436,2937.3,2936.5,4.739]
[1769177417318,0.00245898,2937.5,2936.5,4.739]
[1769177417520,0.36982261,2937.4,2936.5,4.739]
[1769177417720,0.36982261,2937.3,2936.5,4.739]
[1769177417916,0.00245898,2937.5,2936.5,4.739]
[1769177418118,0.36979112,2937.4,2936.5,4.739]
[1769177418318,0.36979112,2937.3,2936.5,4.739]
[1769177418521,0.00245898,2937.5,2936.5,4.739]
[1769177418712,0.36979973,2937.4,2936.5,4.739]
[1769177418916,0.36979973,2937.3,2936.5,4.739]
[1769177419120,0.00245898,2937.5,2936.5,4.739]
[1769177419323,0.36980935,2937.4,2936.5,4.739]
[1769177419521,0.36980935,2937.3,2936.5,4.739]
[1769177419721,0.00245898,2937.5,2936.5,4.739]
[1769177419920,0.36980801,2937.4,2936.5,4.739]
[1769177420122,0.36980801,2937.3,2936.5,4.739]
[1769177420323,0.00245898,2937.5,2936.5,4.739]
[1769177420622,0.36980629,2937.4,2936.5,4.739]
[1769177420823,0.36980629,2937.3,2936.5,4.739]
[1769177421124,0.00245898,2937.5,2936.5,4.739]
[1769177421323,0.36980758,2937.4,2936.5,4.739]
[1769177421516,0.36980758,2937.3,2936.5,4.739]
[1769177421718,0.00245898,2937.5,2936.5,4.739]
[1769177421924,0.36980417,2937.4,2936.5,4.739]
[1769177422116,0.36980417,2937.3,2936.5,4.739]
[1769177422316,0.00245898,2937.5,2936.5,4.739]
[1769177422517,0.36979814,2937.4,2936.5,4.739]
[1769177422719,0.36979814,2937.3,2936.5,4.739]
[1769177422924,0.00245898,2937.5,2936.5,4.739]
[1769177423220,0.36980103,2937.4,2936.5,4.739]
[1769177423422,0.36980103,2937.3,2936.5,4.739]
[1769177423622,0.00245898,2937.5,2936.5,4.739]
[1769177423919,0.36962572,2937.4,2936.5,4.739]
[1769177424117,0.36962572,2937.3,2936.5,4.739]
[1769177424316,0.00245898,2937.5,2936.5,4.739]
[1769177424520,0.36964853,2937.4,2936.5,4.739]
[1769177424818,0.36964853,2937.3,2936.5,4.739]
[1769177425019,0.00245898,2937.5,2936.3,0.90816822]
[1769177425219,0.36969217,2937.4,2936.4,4.758]
[1769177425520,0.36969217,2937.3,2936.4,4.758]
[1769177425719,0.00245898,2937.5,2936.4,4.758]
[1769177426019,0.36974298,2937.4,2936.4,4.758]
[1769177426219,0.00245898,2937.5,2936.6,0.90816822]
[1769177426421,0.36976238,2937.4,2936.6,0.90816822]
[1769177426620,0.00245898,2937.5,2936.6,0.90816822]
[1769177429521,2.60459408,2938.5,2936.7,0.13867014]
[1769177429731,1.28959492,2938.4,2937.5,0.90816822]
[1769177430032,0.36683756,2938.3,2937.2,0.90816822]
[1769177430229,0.36683756,2938.2,2937.2,0.90816822]
[1769177430425,1.07854822,2938.5,2937.7,0.00510742]
[1769177430732,1.07854822,2938.5,2937.2,4.282]
[1769177430733,1.2854433,2938.4,2937.2,4.282]
[1769177430931,0.00510742,2938.0,2937.2,4.282]
[1769177431624,0.00510742,2938.0,2937.2,4.28439325]
[1769177434727,0.90816822,2937.9,2937.2,0.00239325]
[1769177435033,0.90816822,2937.6,2936.5,3.408]
[1769177436034,0.90816822,2937.6,2936.5,3.41076845]
[1769177437531,0.90816822,2937.6,2936.4,4.774]
[1769177437532,0.90816822,2936.6,2935.6,0.30923837]
[1769177437732,0.90816822,2936.6,2935.3,0.90816822]
[1769177438035,0.13909296,2936.8,2935.3,0.90816822]
[1769177438331,0.00510742,2936.2,2935.6,0.90816822]
[1769177438535,0.13909296,2936.8,2935.8,0.00510742]
[1769177438736,0.36551399,2936.7,2935.8,0.00510742]
[1769177438936,0.13909296,2936.8,2935.8,0.00510742]
[1769177439235,0.3638903,2936.7,2935.8,0.00510742]
[1769177439443,0.13909296,2936.8,2935.8,0.00510742]
[1769177439630,0.36389149,2936.7,2935.8,0.00510742]
[1769177439835,0.14173001,2936.8,2935.8,0.00510742]
[1769177457149,0.00263705,2936.8,2935.8,0.14379579]
[1769177457356,0.13909296,2937.7,2936.0,0.13868837]
[1769177458338,0.14320742,2937.7,2936.0,0.13868837]
[1769177462351,0.14320742,2937.7,2936.1,0.15098424]
[1769177462553,0.14320742,2937.7,2936.2,0.15098424]
[1769177464947,0.14406344,2937.5,2936.2,3.409]
[1769177466047,0.00411446,2937.7,2936.3,0.1511551]
[1769177468042,0.00411446,2937.7,2936.3,1.06005208]
[1769177468346,0.15499394,2937.7,2936.2,0.17051]
[1769177471848,0.15499394,2937.7,2936.3,0.1511551]
[1769177472646,0.00411446,2937.7,2936.3,0.1511551]
[1769177474254,0.00411446,2937.7,2936.3,6.4511551]
[1769177475356,0.00411446,2937.7,2936.4,0.1511551]
[1769177477252,0.00411446,2937.7,2936.3,6.3]
[1769177477750,0.15499394,2937.7,2936.3,8.19]
[1769177479259,0.15499394,2937.7,2936.3,8.3411551]
[1769177479260,0.00411446,2937.7,2936.3,8.3411551]
[1769177479461,0.00411446,2937.7,2936.4,0.1511551]
[1769177479758,0.15499394,2937.7,2936.3,8.19]
[1769177482862,0.00411446,2937.7,2936.4,0.1511551]
[1769177484267,0.15499394,2937.7,2936.4,0.1511551]
[1769177484762,0.15499394,2937.7,2936.3,8.19]
[1769177485154,0.36473786,2937.6,2936.3,8.19]
[1769177485359,0.15499394,2937.7,2936.3,8.19]
[1769177485561,0.36475832,2937.6,2936.3,8.19]
[1769177485761,0.15499394,2937.7,2936.3,8.19]
[1769177485961,0.36477746,2937.6,2936.3,8.19]
[1769177486161,0.15499394,2937.7,2936.3,8.19]
[1769177486368,0.36502814,2937.6,2936.3,8.19]
[1769177486565,0.15499394,2937.7,2936.3,8.19]
[1769177486765,0.50931076,2937.6,2936.2,3.23733118]
[1769177487064,0.36503035,2937.5,2936.3,4.807]
[1769177487368,0.36503035,2937.4,2936.2,4.97751]
[1769177487667,0.14428484,2937.6,2936.2,4.97751]
[1769177487868,0.36539198,2937.5,2936.2,4.97751]
[1769177488068,0.36539198,2937.4,2936.2,4.97751]
[1769177488368,0.14428484,2937.6,2936.2,8.04433118]
[1769177488561,0.36543653,2937.5,2936.2,8.04433118]
[1769177488762,0.14428484,2937.6,2936.2,8.04433118]
[1769177489067,0.36543621,2937.5,2936.2,8.04433118]
[1769177489264,0.14428484,2937.6,2936.2,8.04433118]
[1769177489472,0.36546664,2937.5,2936.2,8.04433118]
[1769177489664,0.14428484,2937.6,2936.2,8.04433118]
[1769177489861,0.36546736,2937.5,2936.2,8.04433118]
[1769177490169,0.3654935,2937.4,2936.2,8.04433118]
[1769177490369,0.14428484,2937.6,2936.2,8.19512726]
[1769177490565,0.36553722,2937.5,2936.2,8.19512726]
[1769177490764,0.14428484,2937.6,2936.2,8.19512726]
[1769177490965,0.36553828,2937.5,2936.2,8.19512726]
[1769177491165,0.36556891,2937.4,2936.2,8.19512726]
[1769177491365,0.14428484,2937.6,2936.2,8.19512726]
[1769177491667,0.3655556,2937.5,2936.2,3.21761726]
[1769177491868,0.14428484,2937.3,2936.1,7.88982118]
[1769177492169,0.3655556,2937.2,2936.1,4.823]
[1769177492365,0.3655556,2937.1,2936.1,4.823]
[1769177492571,0.14428484,2937.3,2936.1,4.823]
[1769177492873,0.36541127,2937.2,2936.1,4.823]
[1769177493073,0.36541127,2937.1,2936.0,4.825]
[1769177493270,0.14428484,2937.3,2936.0,4.825]
[1769177493466,0.36533572,2937.2,2936.0,4.825]
[1769177493668,0.36533572,2937.1,2936.0,4.825]
[1769177493869,0.14428484,2937.3,2936.0,4.825]
[1769177494071,0.36528632,2937.2,2936.0,4.825]
[1769177494371,0.36528632,2937.1,2936.0,4.825]
[1769177494572,0.14428484,2937.3,2936.0,4.825]
[1769177494772,0.36522562,2937.2,2936.0,4.825]
[1769177494964,0.17043,2937.6,2936.0,4.97470366]
[1769177495166,1.28557771,2937.5,2936.1,0.14970366]
[1769177495367,0.36523863,2937.4,2936.1,0.14970366]
[1769177495665,0.36523863,2937.3,2936.1,0.14970366]
[1769177495867,0.17043,2937.6,2936.1,0.14970366]
[1769177496064,1.28555326,2937.5,2936.1,0.14970366]
[1769177496266,0.36523135,2937.4,2936.1,0.14970366]
[1769177496474,0.36523135,2937.3,2936.1,0.14970366]
[1769177496774,0.1457306,2937.5,2936.2,4.835]
[1769177496972,0.36377971,2937.4,2936.2,4.835]
[1769177497172,0.36377971,2937.3,2936.2,4.835]
[1769177497474,0.1457306,2937.5,2936.2,4.835]
[1769177497673,0.36376501,2937.4,2936.2,4.835]
[1769177497874,0.36376501,2937.3,2936.2,4.835]
[1769177498075,0.17043,2937.6,2936.2,4.98470366]
[1769177498276,1.28396425,2937.5,2936.3,0.14970366]
[1769177498475,0.36375967,2937.4,2936.3,0.14970366]
[1769177498670,0.36375967,2937.3,2936.3,0.14970366]
[1769177498868,0.17043,2937.6,2936.3,0.14970366]
[1769177499067,1.28402004,2937.5,2936.3,0.14970366]
[1769177499271,0.3637764,2937.4,2936.3,0.14970366]
[1769177499574,0.3637764,2937.3,2936.3,0.14970366]
[1769177499774,0.00411446,2937.7,2936.3,0.14970366]
[1769177500068,0.36377233,2937.6,2936.3,0.14970366]
[1769177500374,0.36377233,2937.5,2936.3,0.14970366]
[1769177500574,0.00411446,2937.7,2936.3,0.14970366]
[1769177500771,0.36379855,2937.6,2936.3,0.14970366]
[1769177500972,0.36379855,2937.5,2936.5,0.90829383]
[1769177501177,0.00411446,2937.7,2936.5,0.90829383]
[1769177501375,0.36382532,2937.6,2936.5,0.90829383]
[1769177501674,0.36380206,2937.5,2936.5,0.90829383]
[1769177501867,0.14984506,2937.7,2936.5,0.90829383]
[1769177502067,0.90829383,2937.4,2936.2,3.06682118]
[1769177502271,0.363763,2937.3,2936.1,7.91182118]
[1769177502477,0.36375403,2937.2,2936.1,4.845]
[1769177502673,1.05402443,2937.4,2936.1,4.845]
[1769177502868,0.36377095,2937.3,2936.1,4.845]
[1769177503072,0.36377095,2937.2,2936.1,5.90299749]
[1769177503274,1.08283829,2937.7,2936.4,0.90829383]
[1769177503478,1.28386557,2937.6,2936.4,0.90829383]
[1769177503778,0.36373746,2937.5,2936.4,0.90829383]
[1769177503976,0.36373746,2937.4,2936.4,0.90829383]
[1769177504176,0.17454446,2937.7,2936.4,0.90829383]
[1769177504475,1.2837396,2937.6,2936.4,0.90829383]
[1769177504779,0.36369562,2937.5,2936.4,0.90829383]
[1769177504977,0.36369562,2937.4,2936.4,0.90829383]
[1769177505178,0.32027506,2937.7,2936.4,0.90829383]
[1769177505379,1.28364463,2937.6,2936.4,0.90829383]
[1769177505581,0.36366891,2937.5,2936.4,0.90829383]
[1769177505876,0.36366891,2937.4,2936.4,0.90829383]
[1769177506078,0.36368492,2937.3,2936.4,0.90829383]
[1769177506271,0.32027506,2937.7,2936.4,0.90829383]
[1769177506471,1.42943156,2937.6,2936.4,0.90829383]
[1769177506672,0.1457306,2937.4,2936.1,5.75329383]
[1769177506879,0.36368487,2937.3,2936.1,5.75329383]
[1769177507181,0.36368487,2937.2,2936.1,5.75329383]
[1769177507380,0.1457306,2937.4,2936.1,5.75329383]